Cogmind - Beta 16 @@@ ROGUE MODE // 2025.11.26 @ 21:41:01 Player: Skysub Result: Destroyed by G-34 Mercenary with Small Laser Performance ------------- Evolutions (1) 500 Regions Visited (2) 400 Robots Destroyed (6) 30 Value Destroyed (127) 127 Prototype IDs (0) 0 Alien Tech Used (0) 0 Bonus (200) 200 TOTAL SCORE: 1257 Bonus ------- Pacifist 200 Cogmind --------- Core Integrity 0/400 Matter 296/300 Energy 86/100 System Corruption 8% Temperature Cool (13) Movement Flying (40) Location -9/Materials Parts ------- > --- POWER (1) -------- (None) > --- PROPULSION (3) --- Flight Unit > --- UTILITY (3) ------ Structural Scanner > --- WEAPON (2) ------- (None) > --- INVENTORY (5) ---- Light Ion Engine Grenade Launcher Peak State ------------ > --- POWER ------------ (None) > --- PROPULSION ------- Flight Unit > --- UTILITY ---------- Structural Scanner > --- WEAPON ----------- (None) > --- INVENTORY -------- Light Ion Engine Grenade Launcher [Rating: 2] Favorites ----------- Power None Propulsion Flight Unit Flight Unit Flight Unit Utility Structural Scanner Device Structural Scanner Weapon Grenade Launcher Launcher Grenade Launcher Build | -11 -10 -9 ------- Run | Yrd Mat Mat Slots Evolved 2 | . . 2 Power . | . . . Propulsion 1 | . . 1 Utility 1 | . . 1 Weapon . | . . . Parts Attached 3 | . 1 2 Power . | . . . Engine . | . . . Core . | . . . Reactor . | . . . Propulsion 1 | . . 1 Treads . | . . . Leg . | . . . Wheel . | . . . Hover . | . . . Flight 1 | . . 1 Utility 1 | . . 1 Device 1 | . . 1 Storage . | . . . Processor . | . . . Hackware . | . . . Protection . | . . . Artifact . | . . . Weapon 1 | . 1 . Energy Gun . | . . . Energy Cannon . | . . . Ballistic Gun . | . . . Ballistic Cannon . | . . . Launcher 1 | . 1 . Special Weapon . | . . . Impact Weapon . | . . . Slashing Weapon . | . . . Piercing Weapon . | . . . Special Melee Weapon . | . . . Unidentified Prototypes . | . . . Corrupted Parts 1 | . . 1 System Corruption 8 | . . 8 Parts Lost . | . . . Power . | . . . Propulsion . | . . . Utility . | . . . Weapon . | . . . Highest Loss Streak . | . . . To Critical Strikes . | . . . Average Backups 2 | . 2 2 Power . | . 1 1 Propulsion . | . . . Utility . | . . . Weapon . | . . 1 Tool/Special . | . . . Unused Backups 1 | . . 1 Power 1 | . . 1 Propulsion . | . . . Utility . | . . . Weapon . | . . . Tool/Special . | . . . Average Slot Usage (%) 1 | . 3 . Launcher 1 | . 3 . Peak Build Rating 2 | . 1 2 Average Rating . | . . . On Entrance . | . . . Avg Prop Armor Cover (%) . | . . . Naked Turns 118 | . 54 64 Heaviest Build 3 | . 3 1 Greatest Support 4 | 3 3 4 Greatest Overweight (x) . | . . . Average Overweight (x) . | . . . Largest Inventory Capacity 5 | 5 5 5 Average Capacity 5 | 5 5 5 Most Carried 4 | 1 3 4 Average Carried 2 | . 2 2 Final Capacity 5 | 5 5 5 Final Carried 3 | 1 3 2 Class Distribution -------------------- 100% | Mutant Dominant Class ---------------- Mutant | -10/Materials Mutant | -9/Materials Resources | -11 -10 -9 ----------- Run | Yrd Mat Mat Matter Collected 244 | 188 14 42 Remotely . | . . . Salvage Created 87 | . . 87 Parts 11 | . . 11 Haulers Intercepted . | . . . Recyclers Shooed . | . . . Parts Field Recycled . | . . . Retrieved Matter . | . . . Parts Self-Destructed . | . . . Prevented . | . . . Parts Restored . | . . . Kills | -11 -10 -9 ------- Run | Yrd Mat Mat Combat Hostiles Destroyed 5 | . . 5 AOE 5 | . . 5 Classes Destroyed 3 | . . 3 Mechanic 1 | . . 1 Swarmer 4 | . . 4 Grunt 1 | . . 1 Best Kill Streak 6 | . . 6 Combat Bots Only 5 | . . 5 Max Kills in Single Turn 4 | . . 4 Gunslinging . | . . . Exploded 3 | . . 3 Melee . | . . . Uniques/NPCs Destroyed . | . . . Combat | -11 -10 -9 -------- Run | Yrd Mat Mat Hostile Shots Fired 71 | . 16 55 Missed 34 | . 11 23 Hits 37 | . 5 32 Projectile 37 | . 5 32 Damage Taken 544 | . 98 446 Core 504 | . 98 406 Absorbed by Shields . | . . . Core Remaining (%) 80 | 100 60 . Volleys Fired 3 | . 2 1 Largest 1 | . 1 1 Hottest 30 | . 30 30 Shots Fired 3 | . 2 1 Gun . | . . . Cannon . | . . . Launcher 3 | . 2 1 Special . | . . . Kinetic . | . . . Thermal . | . . . Explosive 3 | . 2 1 Electromagnetic . | . . . Robot Hit Streak . | . . . Robot Miss Streak . | . . . Penetration Max . | . . . Secondary Targets . | . . . Shots Hit Robots . | . . . Core Hits 9 | . . 9 Critical Kills . | . . . Critical Parts Destroyed . | . . . Critical Strikes . | . . . Melee Attacks . | . . . Impact . | . . . Slashing . | . . . Piercing . | . . . Sneak Attacks . | . . . Combat Hostiles . | . . . Follow-up Attacks . | . . . Damage Inflicted 261 | . . 261 Guns . | . . . Cannons . | . . . Explosions 240 | . . 240 Melee . | . . . Ramming 21 | . . 21 Kinetic . | . . . Thermal . | . . . Explosive 136 | . . 136 Electromagnetic 104 | . . 104 Impact . | . . . Slashing . | . . . Piercing . | . . . Highest Corruption 8 | . . 8 Average Corruption 8 | . . 8 Corruption Purged . | . . . Corruption Blocked . | . . . Effects 1 | . . 1 Data Loss (minor) 1 | . . 1 Overload Shots . | . . . Overflow Damage . | . . . Projectiles . | . . . Explosions . | . . . Melee . | . . . Knockbacks . | . . . Impact . | . . . Kinetic . | . . . Secondary . | . . . Self-Inflicted Damage 131 | . 34 97 Shots 4 | . 1 3 Rammed 6 | . . 6 Targets Rammed 6 | . . 6 Kicked . | . . . Crushed . | . . . Highest Temperature . | . . . Average Temperature . | . . . Received Heat Transfer 150 | . 36 114 Siege Activations . | . . . Martial Activations . | . . . Shielding Activations . | . . . Robots Disrupted . | . . . Combat Hostiles . | . . . Robots Corrupted . | . . . Combat Hostiles . | . . . Parts Fried . | . . . Impact Corruptions . | . . . Robots Melted . | . . . Combat Hostiles . | . . . Parts Melted . | . . . Heat Transferred . | . . . Parts Sabotaged . | . . . Parts Stolen . | . . . Parts Stripped . | . . . Power Chain Reactions 1 | . . 1 Alert | -11 -10 -9 ------- Run | Yrd Mat Mat Maximum Alert Level 1 | . . 1 Low Security (%) 92 | 100 100 83 Level 1 7 | . . 16 Level 2 . | . . . Level 3 . | . . . Level 4 . | . . . Level 5 . | . . . High Security . | . . . Max Security . | . . . Peak Influence 208 | . 100 208 Initial 42 | . . 42 Average 66 | . 70 74 Influence Increases 326 | . 130 196 Destroy 0b10 Robot/C 100 | . . 100 Destroy 0b10 Robot/NC 5 | . . 5 Destroy Leader 10 | . . 10 Successful Hack 14 | . 5 9 Disable Machine 60 | . 45 15 Destroy Structure 47 | . 35 12 Partial Spotted 15 | . 15 . Lose Combat Pursuer 75 | . 30 45 Influence Decreases 118 | . 30 88 Entered New Map 58 | . . 58 Time Decay 60 | . 30 30 Squads Dispatched 4 | . . 4 Investigation 4 | . . 4 Extermination . | . . . Reinforcement . | . . . Assault . | . . . Garrison . | . . . Intercept . | . . . Searches Triggered . | . . . Construction Impeded . | . . . Haulers Reinforced . | . . . Active Scanning Responses . | . . . Cargo Convoy Interrupts . | . . . Stealth | -11 -10 -9 --------- Run | Yrd Mat Mat Distress Signals . | . . . Communications Jammed . | . . . Distress Signals . | . . . Times Spotted 19 | . 4 15 Peak Tracking Total 9 | . 3 9 Tactical Retreats 2 | . 1 1 Traps | -11 -10 -9 ------- Run | Yrd Mat Mat Traps Triggered 1 | . . 1 Indirectly . | . . . Trap Hack Attempts . | . . . Triggered . | . . . Disarmed . | . . . Reprogrammed . | . . . Reused . | . . . Traps Extracted . | . . . Installed . | . . . Triggered . | . . . Machines | -11 -10 -9 ---------- Run | Yrd Mat Mat Machines Disabled 4 | . 3 1 Max in Single Turn 3 | . 3 1 Machines Repaired . | . . . Machines Dismantled . | . . . Machines Sabotaged . | . . . Overloaded Fab Kills . | . . . Hacking | -11 -10 -9 --------- Run | Yrd Mat Mat Machines Accessed 4 | . 1 3 Terminals 4 | . 1 3 Fabricators . | . . . Repair Stations . | . . . Recycling Units . | . . . Scanalyzers . | . . . Garrison Access . | . . . Total Hacks 12 | . 4 8 Successful 3 | . 1 2 Failed 9 | . 3 6 Catastrophic 2 | . 1 1 Database Lockouts . | . . . Manual 10 | . 4 6 Terminals 12 | . 4 8 Fabricators . | . . . Repair Stations . | . . . Recycling Units . | . . . Scanalyzers . | . . . Garrison Access . | . . . Terminal Hacks . | . . . Fabricator Hacks . | . . . Repair Station Hacks . | . . . Recycling Unit Hacks . | . . . Scanalyzer . | . . . Garrison Access Hacks . | . . . Unauthorized Hacks 3 | . 1 2 Terminals 3 | . 1 2 Botnet 3 | . 1 2 Fabricators . | . . . Repair Stations . | . . . Recycling Units . | . . . Scanalyzers . | . . . Garrison Access . | . . . Data Cores Recovered . | . . . Used . | . . . Hacking Detections 4 | . 1 3 Full Trace Events 4 | . 1 3 Feedback Events . | . . . Feedback Blocked . | . . . Robot Schematics Acquired . | . . . Robots Built . | . . . Authchips . | . . . Time . | . . . Total Robot Build Rating . | . . . Part Schematics Acquired . | . . . Parts Built . | . . . Authchips . | . . . Time . | . . . Total Part Build Rating . | . . . Part Studies Acquired . | . . . Parts Repaired . | . . . Time . | . . . Parts Recycled . | . . . Recycled Matter . | . . . Retrieved Matter . | . . . Retrieved Components . | . . . Parts Scanalyzed . | . . . Part Schematics Acquired . | . . . Parts Damaged . | . . . Bothacking | -11 -10 -9 ------------ Run | Yrd Mat Mat Used RIF Installer . | . . . Robots Hacked . | . . . Non-combat . | . . . Combat . | . . . Robot Hacks Applied . | . . . Relay Couplers Released . | . . . Fabnet Peak Effective % . | . . . Robots Rewired . | . . . Allies Hacked . | . . . Hacks Repelled . | . . . Allies | -11 -10 -9 -------- Run | Yrd Mat Mat Total Allies . | . . . Largest Group . | . . . Highest-Rated Group . | . . . Highest-Rated Ally . | . . . Total Orders . | . . . Ally Attacks . | . . . Total Damage . | . . . Kills . | . . . Allies Corrupted . | . . . Allies Melted . | . . . Intel | -11 -10 -9 ------- Run | Yrd Mat Mat Active Infowar (turns) 7 | . . 7 Structural 7 | . . 7 Robot Analysis Total . | . . . Derelict Logs Recovered . | . . . Drone Launches . | . . . Drone Recoveries . | . . . Exploration | -11 -10 -9 ------------- Run | Yrd Mat Mat Turns Passed 157 | 13 71 73 Spaces Moved 273 | 24 126 123 Core 260 | 24 126 110 Treads . | . . . Legs . | . . . Wheels . | . . . Hover . | . . . Flight 13 | . . 13 Fastest Speed 40 | 50 50 40 Average Speed 49 | 50 50 48 Slowest Speed 50 | 50 50 50 Overloaded Moves . | . . . Propulsion Burnouts . | . . . Robots Hopped 1 | . . 1 Potential Cave-ins . | . . . Cave-ins Triggered . | . . . Exploration Rate (%) 18 | 3 33 20 Regions Visited 2 Branch Regions . Pre-discovered Areas . | . . . Known Exits Taken . | . . . Unknown Exits Taken 2 | 1 1 . Scrap Searched . | . . . Spaces Dug 6 | . 6 . Terrain Destroyed 57 | . 46 11 Melee . | . . . Projectile . | . . . AOE 57 | . 46 11 Terrain Rammed . | . . . Walls Destroyed . | . . . Machines Disabled . | . . . Actions | -11 -10 -9 --------- Run | Yrd Mat Mat Total 289 | 24 131 134 Wait . | . . . Move 269 | 23 125 121 Hop 1 | . . 1 Pick Up 4 | 1 2 1 Fast Attach . | . . . Attach 4 | . 1 3 Detach 2 | . 1 1 Swap . | . . . Drop . | . . . Fire 3 | . 2 1 Melee . | . . . Ram 6 | . . 6 Kick . | . . . Crush . | . . . Escape Stasis . | . . . Rewire . | . . . Trap . | . . . Miscellaneous . | . . . Route ------- -11/Scrapyard -10/Materials -9/Materials History --------- Turn | Location | Event 5 | -11/Scrapyard | Discovered new exit (range 16) 14 | -11/Scrapyard | Entered Materials 79 | -10/Materials | Discovered new exit (range 12) 85 | -10/Materials | Entered another Materials area 85 | -9/Materials | Evolved 2 slots: Propulsion x1, Utility x1 143 | -9/Materials | Core integrity fell below 50% 149 | -9/Materials | Core integrity fell below 20% 158 | -9/Materials | Destroyed by G-34 Mercenary with Small Laser Last Messages --------------- 00144_ G-34 Mercenary destroyed. 00144_ M-13 Machinist destroyed. 00144_ S-10 Pest destroyed. 00146_ Neutrino Reactor explodes. 00146_ S-10 Pest destroyed. 00146_ Chain reaction triggered in Corrupted Lgt. Ion Engine. 00146_ S-10 Pest destroyed. 00147_ The unstable cave ceiling collapses. 00147_ Flight Unit crushed. 00148_ Acquired Corrupted Flight Unit. 00149_ U-05 Engineer lays Concrete. 00151_ Acquired 26 matter. 00151_ U-05 Engineer builds a Wall. 00152_ Acquired 4 matter. 00152_ Integrated Corrupted Flight Unit (+8). 00152_ U-05 Engineer builds a Wall. 00153_ Acquired 12 matter. 00153_ U-05 Engineer lays Concrete. 00155_ System corrupted: Component data lost. 00155_ U-05 Engineer builds a Wall. Map ----- +----------------------------------------------------+ | ?????????????????????????????????????????????????? | | ?????????????????????????????????????????????????? | | ?????????????????????????????????????????????????? | | ?????????????????????????????????????????????????? | | ?????????????????????????????????????????????????? | | ?????????????????????????????????????????????????? | | ?????????????????????????????????????????????????? | | ?????????????????????????????????????????????????? | | ?????????????????????????????????????????????????? | | ?????????????????????????????????????????????????? | | ?????????????????????????? ??????????????????????? | | ?????????????????????????? ##????????????????????? | | ?????????????????????????? ##????????????????????? | | ?????????????????????????? ##????????????????????? | | ?????????????????????????? ##????????????????????? | | ??????????????????????#### ##????????????????????? | | ??????????????????????#### ##????????????????????? | | ?????????????????????? # ##????????????????????? | | ?????????????????????? # ##????????????????????? | | ?????????????????????? # ##????????????????????? | | ?????????????????????? # ##????????????????????? | | ?????????????????????? # ##????????????????????? | | ???????????????? ????? # ##????????????????????? | | ???????????????? ????? # #### ??? """ # ???????? | | ???????????????# ????? # #### g # ???????? | | ???????????????# ?????"# @ /g "T? ##???????? | | ???????????????# ?????"# g#### ##???????? | | ???????????????# ?????"# #####???????###???????? | | ???????????????# #???? # ########??????????????? | | ?????????????? # ###??## ########??????????????? | | ?????????????? # ##### # T ##??????????????? | | ?????????????? + ##### #= ## ?????????????? | | ?????????????? # # ## ?????????????? | | ?????????????? + # # ?????????????? | | ?????????????? # "< u# # ?????????????? | | ?????########?## "< g#* # ?????????????? | | ?????? ## < u# == ## ?????????? | | ??????" """ # g # = #######+###??????? | | ??????" """ # * ##??????? | | ??????" """ + ! ##??????? | | ??? # g ##??????? | | ### # #######################??????? | | ## ## ############# ??????? | | ############### # #???????????????????? | | #???# # # #???????????????????? | | #???? """ + + [ #???????????????????? | | #???? "T" # # #???????????????????? | | ##???# !# ###########???????????????????? | | ################ ##????????????????????????????? | | ####?????????????????????????? | +----------------------------------------------------+ Best States ------------- Heat Dissipation 28 Energy Generation 5 Energy Capacity 100 Matter Stores 283 Matter Capacity 300 Sight Range 16 Terrain Scan Density 10 Evasion (%) 50 Item Schematics ----------------- None Robot Schematics ------------------ None Fabricated ------------ Nothing Repaired ---------- Nothing Studied --------- None Alien Tech Used ----------------- None Achievements -------------- None Challenges ------------ None Game ------ Seed RainbowExplosiveSuite Manual? 0 Play Time 00:03:27 Cumulative 290.9 hours Start 2025.11.26 @ 21:38:47 End 2025.11.26 @ 21:41:01 Sessions 1 Manual Loads 0 Difficulty Rogue Special Mode None Game No. 349 Rogue 349 Adventurer 0 Explorer 0 Win Type - Total 18 Types 11/0/3/1/1/0/0/1/0/1 Lore% 77 Gallery% 75 Achievement% 57 Wizard Run 0 Options --------- Layout 1 ASCII 0 Keyboard 1 Movement Numpad Keybinds 0 Fullscreen 0 Font 32/SmallcapsGlow Map View 77x35 Zoom Use 0% Tactical HUD 1 Map Filters NONE Filters NONE Steam 1 RUN: d41c491f-2f08-463d-9f04-ddc3e0fe531f